bitfinex/quotes_SOLUSD_20250106
["timestamp","ask_amount","ask_price","bid_price","bid_amount"]
[1736181841338,5.0,222.08,222.06,13.39918736]
[1736181841539,5.0,222.08,222.07,13.39918736]
[1736181841740,5.0,222.08,222.06,13.39918736]
[1736181842642,5.0,222.08,222.07,13.39918736]
[1736181843462,5.0,222.08,222.06,13.39918736]
[1736181843669,5.0,222.08,222.05,13.39918736]
[1736181843869,5.0,222.08,222.03,11.2595]
[1736181844041,5.0,222.08,222.07,13.39918736]
[1736181844465,5.0,222.08,222.06,13.39918736]
[1736181845165,5.0,222.1,222.06,13.39918736]
[1736181845342,5.0,222.08,222.06,13.39918736]
[1736181845962,5.0,222.08,222.05,13.39918736]
[1736181846179,18.39918736,222.06,222.0,13.39918736]
[1736181846465,13.39918736,222.05,221.99,13.39918736]
[1736181846840,18.39918736,222.06,222.0,13.39918736]
[1736181847382,5.0,222.06,222.0,13.39918736]
[1736181847538,18.39918736,222.06,221.99,20.0]
[1736181847740,18.39918736,222.06,222.0,13.39918736]
[1736181848455,20.5,222.08,221.97,13.39918736]
[1736181848456,5.0,222.03,221.97,13.39918736]
[1736181848658,18.39918736,222.03,221.97,13.39918736]
[1736181849347,5.0,222.01,221.96,13.39918736]
[1736181849707,13.39918736,221.99,221.93,24.66388736]
[1736181849876,18.39918736,221.99,221.93,24.66388736]
[1736181850269,5.0,221.99,221.94,13.39918736]
[1736181851145,5.0,221.99,221.95,13.39918736]
[1736181851359,5.0,221.99,221.94,13.39918736]
[1736181851558,5.0,221.97,221.94,13.39918736]
[1736181851844,5.0,221.97,221.93,13.39918736]
[1736181852981,5.0,221.97,221.92,33.39918736]
[1736181853145,5.0,221.97,221.95,13.39918736]
[1736181853350,5.0,221.97,221.94,13.39918736]
[1736181853557,5.0,221.99,221.95,13.39918736]
[1736181854073,10.0,221.99,221.95,13.39918736]
[1736181854281,10.0,221.99,221.92,20.0]
[1736181854486,5.0,221.97,221.94,13.39918736]
[1736181854860,5.0,221.97,221.93,13.39918736]
[1736181855254,5.0,221.97,221.89,12.9291]
[1736181855455,5.0,221.97,221.93,13.39918736]
[1736181855989,5.0,221.97,221.9,13.39918736]
[1736181855990,10.0,221.95,221.9,13.39918736]
[1736181856175,10.0,221.93,221.88,13.39918736]
[1736181856487,10.0,221.93,221.88,20.0]
[1736181856784,10.0,221.93,221.89,13.39918736]
[1736181857086,10.0,221.93,221.88,33.39918736]
[1736181857473,5.0,221.91,221.88,13.39918736]
[1736181859984,5.0,221.91,221.89,13.39918736]
[1736181860485,5.0,221.91,221.88,13.39918736]
[1736181860859,5.0,221.89,221.87,13.39918736]
[1736181861078,5.0,221.89,221.86,13.39918736]
[1736181862360,5.0,221.89,221.85,13.39918736]
[1736181862562,5.0,221.87,221.84,13.39918736]
[1736181862763,5.0,221.87,221.85,13.39918736]
[1736181863095,5.0,221.87,221.86,13.39918736]
[1736181863276,5.0,221.87,221.85,13.39918736]
[1736181863682,5.0,221.87,221.81,11.6088537]
[1736181863884,5.0,221.87,221.84,13.39918736]
[1736181864716,5.0,221.89,221.85,13.39918736]
[1736181864905,5.0,221.89,221.86,13.39918736]
[1736181865369,5.0,221.87,221.84,13.39918736]
[1736181866895,5.0,221.86,221.82,13.39918736]
[1736181867098,5.0,221.85,221.82,13.39918736]
[1736181867298,5.0,221.83,221.81,13.39918736]
[1736181868596,5.0,221.85,221.82,13.39918736]
[1736181868783,20.5,221.87,221.76,27.11085216]
[1736181868784,25.5,221.87,221.84,13.39918736]
[1736181868979,25.5,221.87,221.86,13.39918736]
[1736181869588,25.5,221.87,221.85,13.39918736]
[1736181870394,5.0,221.85,221.84,13.39918736]
[1736181871092,5.0,221.85,221.79,31.2716]
[1736181871287,5.0,221.85,221.82,13.39918736]
[1736181872997,5.0,221.85,221.83,13.39918736]
[1736181874477,5.0,221.85,221.82,13.39918736]
[1736181875688,5.0,221.85,221.84,13.39918736]
[1736181876070,5.0,221.85,221.83,13.39918736]
[1736181877005,5.0,221.85,221.83,8.58370858]
[1736181878394,5.0,221.85,221.84,8.58370858]
[1736181878610,5.0,221.9,221.84,8.58370858]
[1736181878804,5.0,221.92,221.89,8.58370858]
[1736181879008,5.0,221.95,221.91,8.58370858]
[1736181879302,5.0,221.95,221.94,8.58370858]
[1736181879496,10.0,221.97,221.94,8.58370858]
[1736181879801,5.0,221.95,221.89,20.33865371]
[1736181880103,5.0,221.95,221.94,8.58370858]
[1736181881081,5.0,221.95,221.94,13.39673228]
[1736181881622,1.6422,222.05,221.97,20.0]
[1736181881623,5.0,222.02,221.97,20.0]
[1736181881773,5.0,222.02,222.01,13.39673228]
[1736181881973,10.0,222.02,221.92,2.45806476]
[1736181882212,5.0,222.0,221.98,13.39673228]
[1736181882674,5.0,222.0,221.99,13.39673228]
[1736181883320,5.0,222.0,221.97,13.39673228]
[1736181883616,5.0,221.97,221.93,13.39673228]
[1736181883773,5.0,221.97,221.95,13.39673228]
[1736181884279,5.0,221.95,221.88,0.3382929]
[1736181884498,5.0,221.95,221.9,13.39673228]
[1736181884695,5.0,221.93,221.9,13.39673228]
[1736181885207,5.0,221.93,221.92,13.39673228]
[1736181886592,5.0,221.93,221.89,11.2668]
[1736181886779,5.0,221.93,221.92,13.39673228]
[1736181887481,5.0,221.93,221.91,13.39673228]
[1736181887681,5.0,221.93,221.86,20.0]
[1736181887913,5.0,221.92,221.89,13.39673228]
[1736181888615,5.0,221.91,221.89,13.39673228]
[1736181889287,5.0,221.91,221.9,13.39673228]
[1736181889482,5.0,221.91,221.89,13.39673228]
[1736181889904,5.0,221.91,221.88,20.0]
[1736181890111,5.0,221.91,221.89,13.39673228]
[1736181891014,5.0,221.91,221.88,20.0]
[1736181891181,5.0,221.91,221.89,13.39673228]
[1736181891380,5.0,221.89,221.82,1.6598]
[1736181891715,5.0,221.89,221.86,13.39673228]
[1736181891906,5.0,221.88,221.86,13.39673228]
[1736181892412,5.0,221.87,221.86,13.39673228]
[1736181893015,5.0,221.86,221.83,13.39673228]
[1736181893219,5.0,221.84,221.83,13.39673228]
[1736181893527,5.0,221.85,221.83,13.39673228]
[1736181893808,10.0,221.87,221.84,13.39673228]
[1736181894011,10.0,221.87,221.85,13.39673228]
[1736181894189,13.39673228,221.91,221.86,13.39673228]
[1736181894190,5.0,221.91,221.86,13.39673228]
[1736181894386,5.0,221.91,221.82,0.33901537]
[1736181894387,5.0,221.91,221.89,13.39673228]
[1736181894581,5.0,221.89,221.88,13.39673228]
[1736181896706,10.0,221.89,221.88,13.39673228]
[1736181897302,10.0,221.89,221.85,20.0]
[1736181897496,10.0,221.89,221.88,13.39673228]
[1736181898098,5.0,221.89,221.88,13.39673228]
[1736181898281,5.0,221.91,221.86,20.0]
[1736181898488,5.0,221.91,221.9,13.39673228]
[1736181900596,5.0,221.96,221.91,23.776884]
[1736181900819,5.0,221.98,221.95,13.39673228]
[1736181901120,5.0,221.98,221.9,0.33839771]
[1736181901121,5.0,221.98,221.97,13.39673228]
[1736181901716,5.0,221.98,221.91,20.0]
[1736181901939,5.0,221.95,221.91,20.0]
[1736181902240,5.0,221.92,221.86,1.5865]
[1736181902392,5.0,221.92,221.84,2.34]
[1736181902393,5.0,221.9,221.84,2.34]
[1736181902718,5.0,221.93,221.81,6.59296593]
[1736181902719,5.0,221.87,221.81,1.6187]
[1736181903018,5.0,221.84,221.75,8.79322057]
[1736181903222,5.0,221.84,221.78,20.0]
[1736181903517,5.0,221.84,221.75,10.86953493]
[1736181903706,5.0,221.84,221.83,13.39673228]
[1736181908296,5.0,221.82,221.78,13.39673228]
[1736181908504,5.0,221.79,221.78,13.39673228]
[1736181909431,5.0,221.78,221.75,13.39673228]
[1736181909602,5.0,221.77,221.75,13.39673228]
[1736181909801,5.0,221.77,221.76,13.39673228]
[1736181910135,5.0,221.75,221.74,13.39673228]
[1736181911130,5.0,221.7,221.69,13.39673228]
[1736181911329,10.0,221.68,221.63,10.0]
[1736181911527,10.0,221.68,221.67,13.39673228]
[1736181913927,10.0,221.68,221.66,20.0]
[1736181914112,10.0,221.68,221.66,33.39673228]
[1736181914634,5.0,221.65,221.63,10.0]
[1736181915201,5.0,221.64,221.63,10.0]
[1736181915708,25.5,221.64,221.63,23.39673228]
[1736181916239,25.5,221.64,221.63,10.0]
[1736181917122,26.34601836,221.64,221.63,10.0]
[1736181917425,25.5,221.64,221.63,10.0]
[1736181917725,20.5,221.64,221.63,23.39673228]
[1736181918909,25.5,221.64,221.63,23.39673228]
[1736181919927,20.5,221.64,221.63,23.39673228]
[1736181920138,25.5,221.64,221.63,23.39673228]
[1736181920335,25.5,221.64,221.63,10.0]
[1736181920701,5.0,221.64,221.63,10.0]
[1736181920907,18.52222228,221.64,221.63,10.0]
[1736181921109,20.14802228,221.64,221.63,10.0]
[1736181921531,44.05039628,221.64,221.63,8.3334]
[1736181921725,26.91331228,221.64,221.63,8.3334]
[1736181921925,26.78782228,221.64,221.63,8.3334]
[1736181922239,13.39109,221.64,221.63,8.3334]
[1736181923112,11.6398,221.64,221.63,8.3334]
[1736181925043,10.0,221.62,221.61,13.39673228]
[1736181925250,10.0,221.62,221.6,21.50312974]
[1736181925447,14.6666,221.62,221.61,21.50312974]
[1736181926547,10.0,221.6,221.58,21.50312974]
[1736181926719,10.0,221.6,221.59,21.50312974]
[1736181927045,5.0,221.57,221.56,20.0]
[1736181927340,5.0,221.57,221.56,41.50312974]
[1736181927833,5.0,221.55,221.5,32.8817]
[1736181928044,5.0,221.55,221.54,21.50312974]
[1736181928216,4.6666,221.6,221.54,21.50312974]
[1736181928217,5.0,221.59,221.54,21.50312974]
[1736181928546,5.0,221.6,221.58,21.50312974]
[1736181928748,5.0,221.6,221.59,21.50312974]
[1736181930248,5.0,221.6,221.53,10.0]
[1736181930249,5.0,221.55,221.54,21.50312974]
[1736181931242,5.0,221.55,221.53,31.50312974]
[1736181932129,5.0,221.54,221.53,31.50312974]
[1736181932327,5.0,221.57,221.53,31.50312974]
[1736181932534,5.0,221.57,221.56,21.50312974]
[1736181932735,10.0,221.57,221.56,21.50312974]
[1736181933320,5.0,221.57,221.56,21.50312974]
[1736181933937,5.0,221.59,221.57,11.2831]
[1736181934133,5.0,221.61,221.58,21.50312974]
[1736181934338,5.0,221.61,221.6,21.50312974]
[1736181934552,5.0,221.62,221.6,21.50312974]
[1736181934860,4.6666,221.64,221.61,21.50312974]
[1736181934861,5.0,221.64,221.61,21.50312974]
[1736181935034,5.0,221.62,221.6,20.0]
[1736181936255,5.0,221.61,221.57,11.2831]
[1736181936558,5.0,221.59,221.57,21.50312974]
[1736181937133,5.0,221.58,221.56,41.50312974]
[1736181937333,5.0,221.57,221.54,21.50312974]
[1736181937548,10.0,221.55,221.53,31.50312974]
[1736181937728,10.0,221.55,221.54,21.50312974]
[1736181938058,5.0,221.55,221.54,21.50312974]
[1736181938371,5.0,221.57,221.54,21.50312974]
[1736181938534,5.0,221.57,221.56,21.50312974]
[1736181939065,10.0,221.57,221.54,21.50312974]
[1736181939226,10.0,221.55,221.53,10.0]
[1736181939563,27.01611485,221.54,221.53,10.0]
[1736181939730,26.16972974,221.54,221.53,10.0]
[1736181940062,27.01617438,221.54,221.53,10.0]
[1736181940249,22.34957438,221.54,221.53,10.0]
[1736181941135,22.47506438,221.54,221.53,10.0]
[1736181941540,67.75507812,221.54,221.53,10.0]
[1736181942433,67.88056812,221.54,221.53,10.0]
[1736181945263,5.0,221.41,221.4,21.50312974]
[1736181945437,10.0,221.41,221.4,21.50312974]
[1736181948265,5.0,221.41,221.4,21.50312974]
[1736181948436,10.0,221.43,221.4,21.50312974]
[1736181948638,10.0,221.43,221.42,21.50312974]
[1736181949078,10.0,221.43,221.42,13.46044118]
[1736181949242,5.0,221.46,221.42,13.46044118]
[1736181949438,5.0,221.49,221.45,13.46044118]
[1736181949646,5.0,221.48,221.45,13.46044118]
[1736181949972,5.0,221.48,221.47,13.46044118]
[1736181950147,5.0,221.51,221.47,13.46044118]
[1736181950334,5.0,221.51,221.5,13.46044118]
[1736181950663,10.0,221.51,221.49,13.46044118]
[1736181951455,10.0,221.51,221.48,13.46044118]
[1736181951657,5.0,221.49,221.48,13.46044118]
[1736181951955,10.0,221.49,221.47,13.46044118]
[1736181952363,5.0,221.46,221.43,13.46044118]
[1736181952566,5.0,221.42,221.41,13.46044118]
[1736181953869,10.0,221.44,221.41,13.46044118]
[1736181954243,10.0,221.44,221.42,13.46044118]
[1736181954451,10.0,221.44,221.43,13.46044118]
[1736181954881,10.0,221.44,221.41,13.46044118]
[1736181955063,10.0,221.44,221.41,21.54068214]
[1736181955468,5.0,221.42,221.41,21.54068214]
[1736181961949,10.0,221.42,221.39,20.0]
[1736181962163,5.0,221.4,221.39,41.54068214]
[1736181962353,10.0,221.4,221.39,41.54068214]
[1736181962679,10.0,221.4,221.35,21.54068214]
[1736181963354,10.0,221.4,221.29,1.5239]
[1736181963355,21.54068214,221.39,221.33,21.54068214]
[1736181963546,25.64068214,221.39,221.33,21.54068214]
[1736181964262,4.1,221.39,221.33,21.54068214]
[1736181964462,25.64068214,221.39,221.33,21.54068214]
[1736181965147,25.64068214,221.39,221.32,21.54068214]
[1736181965460,32.538653,221.39,221.28,21.54068214]
[1736181965661,32.538653,221.39,221.27,21.54068214]
[1736181965869,32.538653,221.39,221.28,21.54068214]
[1736181966178,4.1,221.39,221.36,21.54068214]
[1736181966873,4.1,221.39,221.37,21.54068214]
[1736181968267,10.0,221.4,221.37,21.54068214]
[1736181969590,10.0,221.4,221.35,21.54068214]
[1736181969884,10.0,221.4,221.34,20.0]
[1736181969885,10.0,221.4,221.36,21.54068214]
[1736181970648,10.0,221.4,221.37,21.54068214]
[1736181970854,10.0,221.4,221.36,21.54068214]
[1736181971164,10.0,221.4,221.35,21.54068214]
[1736181971884,31.54068214,221.4,221.34,41.54068214]
[1736181972267,10.0,221.4,221.37,21.54068214]
[1736181973590,5.0,221.4,221.39,21.54068214]
[1736181974388,10.0,221.4,221.38,21.57760049]
[1736181974597,10.0,221.4,221.39,20.0]
[1736181976194,10.0,221.4,221.38,21.57760049]
[1736181976567,5.0,221.4,221.39,21.54068214]
[1736181977065,5.0,221.4,221.39,13.46435483]
[1736181978488,10.0,221.4,221.38,0.03691835]
[1736181978791,23.46435483,221.4,221.38,0.03691835]
[1736181979094,10.0,221.4,221.38,0.03691835]
[1736181979477,23.46435483,221.4,221.38,0.03691835]
[1736181981498,13.46435483,221.39,221.38,0.03691835]
[1736181982403,14.31129079,221.39,221.38,0.03691835]
[1736181983194,5.0,221.24,221.19,11.302]
[1736181983394,5.0,221.29,221.23,13.46435483]
[1736181983695,5.0,221.29,221.27,13.46435483]
[1736181983894,5.0,221.29,221.28,13.46435483]
[1736181984066,5.0,221.34,221.31,20.0]
[1736181984265,5.0,221.34,221.32,20.0]
[1736181984468,5.0,221.34,221.33,13.46435483]
[1736181985586,5.0,221.34,221.32,13.46435483]
[1736181985972,10.0,221.24,221.15,1.5274]
[1736181986266,10.0,221.24,221.19,13.46435483]
[1736181986267,5.0,221.22,221.19,13.46435483]
[1736181986472,5.0,221.22,221.2,13.46435483]
[1736181986687,10.0,221.24,221.23,20.0]
[1736181986889,10.0,221.24,221.2,13.46435483]
[1736181986890,5.0,221.22,221.2,13.46435483]
[1736181987286,5.0,221.22,221.21,13.46435483]
[1736181987495,5.0,221.24,221.23,20.0]
[1736181987674,10.0,221.24,221.23,20.0]
[1736181988069,10.0,221.24,221.22,20.0]
[1736181988298,5.0,221.19,221.12,11.3059]
[1736181988496,5.0,221.18,221.16,13.46435483]
[1736181988699,5.0,221.18,221.17,13.46435483]
[1736181989709,5.0,221.25,221.24,20.0]
[1736181989896,5.0,221.25,221.24,33.46435483]
[1736181990083,10.0,221.25,221.24,20.0]
[1736181990293,5.0,221.25,221.24,20.0]
[1736181990684,10.0,221.25,221.24,20.0]
[1736181992192,10.0,221.25,221.23,13.46435483]
[1736181992379,10.0,221.25,221.24,20.0]
[1736181993684,10.0,221.23,221.21,20.0]
[1736181993907,5.0,221.2,221.19,13.46435483]
[1736181995204,5.0,221.18,221.16,13.46435483]
[1736181995411,5.0,221.17,221.11,1.88507167]
[1736181995587,5.0,221.16,221.15,10.0]
[1736181995985,5.0,221.16,221.15,23.46435483]
[1736181996189,5.0,221.16,221.15,10.0]
[1736181996393,5.0,221.16,221.15,23.46435483]
[1736181996993,5.0,221.16,221.15,10.0]
[1736181998413,18.46435483,221.16,221.15,10.0]
[1736181998605,43.21460207,221.16,221.15,10.0]
[1736181998807,18.46435483,221.16,221.15,10.0]
[1736181998994,5.0,221.16,221.15,10.0]
[1736181999195,18.46435483,221.16,221.15,10.0]
[1736181999516,19.3122478,221.16,221.15,10.0]
[1736182000824,10.0,221.02,220.97,13.464355]
[1736182000990,10.0,221.02,220.93,0.5731]
[1736182000991,10.0,221.02,220.98,13.46435483]
[1736182001187,5.0,220.94,220.9,8.99313287]
[1736182001393,5.0,220.96,220.93,13.46435483]
[1736182001593,10.0,220.98,220.95,13.46435483]
[1736182001883,10.0,220.98,220.91,13.464355]
[1736182002106,10.0,220.98,220.88,1.95258578]
[1736182002107,5.0,220.93,220.92,13.46435483]
[1736182002308,10.0,220.93,220.91,13.46435483]
[1736182002793,5.0,220.91,220.89,13.46435483]
[1736182003015,10.0,220.93,220.9,21.63750503]
[1736182003320,10.0,220.93,220.82,11.3212]
[1736182003321,10.0,220.93,220.92,21.63750503]
[1736182003743,10.0,220.91,220.89,21.63750503]
[1736182004234,5.0,220.87,220.81,18.117181]
[1736182004559,5.0,220.86,220.85,21.63750503]
[1736182005207,5.0,220.85,220.81,20.0]
[1736182005533,5.0,220.87,220.86,20.0]
[1736182005741,5.0,220.88,220.86,41.63750503]
[1736182006037,5.0,220.9,220.89,20.0]
[1736182006341,5.0,220.91,220.9,20.0]
[1736182006540,5.0,220.91,220.9,21.63750503]
[1736182006744,5.0,220.94,220.93,20.0]
[1736182006936,5.0,220.94,220.93,41.63750503]
[1736182007138,5.0,220.94,220.93,20.0]
[1736182008023,5.0,220.91,220.89,21.63750503]
[1736182008444,5.0,220.91,220.9,21.63750503]
[1736182009019,5.0,220.9,220.89,21.63750503]
[1736182009532,5.0,220.88,220.87,21.63750503]
[1736182009744,5.0,220.87,220.85,21.63750503]
[1736182010037,5.0,220.87,220.86,21.63750503]
[1736182011253,5.0,220.89,220.88,20.0]
[1736182011956,5.0,220.89,220.88,41.63750503]
[1736182012358,5.0,220.89,220.87,21.63750503]
[1736182012537,5.0,220.87,220.86,21.63750503]
[1736182013036,5.0,220.84,220.76,11.3243]
[1736182013252,5.0,220.92,220.86,20.0]
[1736182013457,5.0,220.92,220.91,21.63750503]
[1736182013957,10.0,220.92,220.91,21.63750503]
[1736182015161,10.0,220.92,220.9,21.63750503]
[1736182015755,5.0,220.89,220.88,20.0]
[1736182015946,5.0,220.89,220.88,41.63750503]
[1736182017871,5.0,220.84,220.79,11.3225]
[1736182018170,5.0,220.84,220.83,21.63750503]
[1736182018371,5.0,220.86,220.82,20.0]
[1736182018567,5.0,220.86,220.84,21.63750503]
[1736182020366,5.0,220.82,220.8,21.63750503]
[1736182020551,5.0,220.82,220.81,21.63750503]
[1736182021364,5.0,220.82,220.8,21.63750503]
[1736182021544,5.0,220.82,220.78,20.0]
[1736182021545,5.0,220.82,220.81,21.63750503]
[1736182021862,5.0,220.85,220.81,21.63750503]
[1736182022061,5.0,220.85,220.84,21.63750503]
[1736182022062,10.0,220.85,220.84,21.63750503]
[1736182022264,10.0,220.85,220.83,21.63750503]
[1736182022464,5.0,220.83,220.82,21.63750503]
[1736182022833,5.0,220.83,220.78,20.0]
[1736182023066,5.0,220.83,220.82,21.63750503]
[1736182023277,10.0,220.87,220.85,20.0]
[1736182023442,5.0,220.9,220.89,20.0]
[1736182023648,5.0,220.9,220.89,41.63750503]
[1736182024058,5.0,220.88,220.87,21.63750503]
[1736182024264,5.0,220.86,220.85,21.63750503]
[1736182024571,5.0,220.85,220.83,20.0]
[1736182024875,5.0,220.85,220.84,21.63750503]
[1736182025063,5.0,220.85,220.83,20.0]
[1736182025567,5.0,220.85,220.84,13.53014696]
[1736182028379,5.0,220.85,220.8,11.3224]
[1736182028567,5.0,220.81,220.77,11.324]
[1736182028750,5.0,220.81,220.8,33.53014696]
[1736182029070,10.0,220.84,220.8,33.53014696]
[1736182029371,10.0,220.84,220.83,13.53014696]
[1736182030254,10.0,220.82,220.79,13.53014696]
[1736182030463,5.0,220.77,220.74,0.03825359]
[1736182030664,10.0,220.77,220.74,13.56840055]
[1736182030980,5.0,220.77,220.76,33.53014696]
[1736182031193,10.0,220.77,220.75,13.53014696]
[1736182032082,10.0,220.77,220.74,13.56840055]
[1736182032383,5.0,220.75,220.74,20.03825359]
[1736182032579,5.0,220.75,220.74,33.56840055]
[1736182033379,10.0,220.77,220.74,33.56840055]
[1736182033582,6.1935,220.85,220.74,33.56840055]
[1736182033583,10.0,220.75,220.74,0.03825359]
[1736182037581,30.74722935,220.75,220.74,0.03825359]
[1736182038173,33.21271935,220.75,220.74,0.03825359]
[1736182038989,57.11509335,220.75,220.74,0.03825359]
[1736182039198,5.0,220.57,220.56,11.3343]
[1736182039366,5.0,220.59,220.56,24.86444696]
[1736182039560,5.0,220.57,220.56,11.3343]
[1736182039762,5.0,220.57,220.56,24.86444696]
[1736182040069,5.0,220.63,220.56,24.86444696]
[1736182040267,5.0,220.61,220.56,11.3343]
[1736182040480,5.0,220.63,220.62,20.0]
[1736182040991,5.0,220.64,220.59,20.0]
[1736182041218,10.0,220.62,220.56,11.3343]
[1736182041423,5.0,220.6,220.56,11.3343]
[1736182041592,5.0,220.6,220.57,13.53014696]
[1736182041796,10.0,220.58,220.57,13.53014696]
[1736182041997,10.0,220.58,220.56,11.3343]
[1736182042207,10.0,220.58,220.57,13.53014696]
[1736182042526,10.0,220.58,220.56,13.53014696]
[1736182042690,10.0,220.56,220.55,13.53014696]
[1736182043691,5.0,220.6,220.58,20.0]
[1736182043891,5.0,220.63,220.62,20.0]
[1736182044121,10.0,220.63,220.62,13.53014696]
[1736182044422,10.0,220.63,220.55,24.86494696]
[1736182044423,5.0,220.61,220.6,13.53014696]
[1736182044599,10.0,220.6,220.59,20.0]
[1736182045211,5.0,220.58,220.56,13.53014696]
[1736182045898,5.0,220.57,220.56,13.53014696]
[1736182046799,5.0,220.58,220.56,13.53014696]
[1736182046997,5.0,220.58,220.57,13.53014696]
[1736182047436,10.0,220.61,220.57,13.53014696]
[1736182047717,5.0,220.61,220.6,13.53014696]
[1736182047886,5.0,220.64,220.63,20.0]
[1736182048090,5.0,220.64,220.63,33.53014696]
[1736182048762,5.0,220.64,220.63,13.53014696]
[1736182051452,5.0,220.64,220.61,31.332]
[1736182051453,10.0,220.64,220.61,31.332]
[1736182051659,5.0,220.62,220.61,31.332]
[1736182051829,10.0,220.62,220.6,20.0]
[1736182052029,5.0,220.59,220.57,11.3338]
[1736182052755,5.0,220.59,220.58,13.53014696]
[1736182053257,5.0,220.59,220.57,24.86394696]
[1736182053438,5.0,220.57,220.55,13.53014696]
[1736182053639,5.0,220.56,220.55,13.53014696]
[1736182054030,5.0,220.54,220.53,11.3359]
[1736182054341,5.0,220.54,220.53,24.86604696]
[1736182055745,10.0,220.56,220.53,24.86604696]
[1736182055950,10.0,220.56,220.55,13.53014696]
[1736182057853,10.0,220.56,220.48,32.26486718]
[1736182058040,10.0,220.56,220.52,20.0]
[1736182058348,10.0,220.56,220.55,13.53014696]
[1736182058539,5.0,220.46,220.43,11.3414]
[1736182058740,5.0,220.46,220.45,13.53014696]
[1736182059255,10.0,220.46,220.45,13.53014696]
[1736182059750,5.0,220.48,220.47,20.0]
[1736182059972,5.0,220.48,220.47,33.53014696]
[1736182060156,10.0,220.48,220.47,33.53014696]
[1736182061255,5.0,220.46,220.43,13.53014696]
[1736182061548,5.0,220.44,220.43,13.53014696]
[1736182062144,5.0,220.44,220.39,11.3433]
[1736182062329,5.0,220.44,220.43,13.53014696]
[1736182063755,0.27215,220.47,220.46,20.0]
[1736182063961,0.27215,220.47,220.46,33.53014696]
[1736182070456,5e-05,220.47,220.46,33.65563696]
[1736182071281,5e-05,220.47,220.46,57.55801096]
[1736182071450,10.0,220.53,220.5,20.0]
[1736182071654,10.0,220.53,220.52,13.53014696]
[1736182071868,5.0,220.53,220.52,13.53014696]
[1736182072176,6.3784,220.62,220.52,13.53014696]
[1736182072177,5.0,220.56,220.52,13.53014696]
[1736182072487,5.0,220.56,220.55,13.53014696]
[1736182073149,0.12549,220.69,220.58,10.0]
[1736182073343,13.53014696,220.64,220.58,10.0]
[1736182073580,0.83927353,220.63,220.58,10.0]
[1736182074160,13.53014696,220.61,220.56,5.0]
[1736182074368,13.53014696,220.59,220.56,5.0]
[1736182074576,13.53014696,220.6,220.58,5.0]
[1736182074767,13.53014696,220.61,220.58,5.0]
[1736182075283,14.36942049,220.6,220.57,5.0]
[1736182075582,13.53014696,220.61,220.57,5.0]
[1736182075962,14.36942049,220.6,220.57,5.0]
[1736182076169,0.83927353,220.6,220.59,5.0]
[1736182076363,6.4457,220.63,220.61,10.0]
[1736182076765,0.83927353,220.62,220.59,5.0]
[1736182076963,13.53014696,220.6,220.56,5.0]
[1736182077162,13.53014696,220.57,220.54,5.0]
[1736182077855,6.57119,220.63,220.54,5.0]
[1736182077856,0.33927353,220.56,220.54,5.0]
[1736182078253,0.33927353,220.57,220.54,5.0]
[1736182079682,0.33927353,220.57,220.52,5.0]
[1736182079683,13.53014696,220.55,220.52,5.0]
[1736182079890,13.53014696,220.53,220.49,5.0]